bitfinex/quotes_ETHUSD_20250406
["timestamp","ask_amount","ask_price","bid_price","bid_amount"]
[1743980416841,6.348,1575.3,1574.7,6.35041]
[1743980417007,6.348,1575.3,1574.8,6.35001]
[1743980417203,12.22865622,1575.4,1574.6,7.45380667]
[1743980417408,12.22865622,1575.4,1575.2,6.34824]
[1743980417605,3.92565622,1575.4,1575.3,6.34799]
[1743980417911,10.27332622,1575.4,1575.0,12.69789]
[1743980418125,3.92565622,1575.4,1575.1,6.34875]
[1743980418337,10.27347622,1575.4,1575.0,6.34901]
[1743980418509,10.27347622,1575.4,1575.0,12.69799]
[1743980418704,16.62132622,1575.4,1575.0,6.34898]
[1743980418952,6.34806,1575.3,1574.8,6.34981]
[1743980419111,6.34846,1575.2,1574.8,12.69965]
[1743980419305,3.92565622,1575.3,1574.8,6.34998]
[1743980419546,3.55,1575.1,1574.6,6.3508]
[1743980419705,6.34983,1574.9,1574.4,6.35156]
[1743980420042,3.92565622,1575.0,1574.9,6.3496]
[1743980420202,41.921,1575.6,1575.2,6.3484]
[1743980420406,41.921,1575.6,1575.3,6.34794]
[1743980420645,41.921,1575.6,1575.5,6.34719]
[1743980420946,41.921,1575.6,1575.3,12.69574]
[1743980421116,41.921,1575.6,1575.1,3.9213]
[1743980421117,41.921,1575.6,1575.5,6.34719]
[1743980421508,13.21945622,1576.1,1575.6,6.34678]
[1743980421726,13.21945622,1576.1,1575.3,6.83379713]
[1743980421727,9.2938,1576.1,1575.9,6.3452]
[1743980421932,15.63873,1576.1,1575.7,6.34607]
[1743980422133,9.2938,1576.1,1576.0,6.34517]
[1743980422440,6.36675495,1576.3,1576.0,6.34517]
[1743980422628,6.36675495,1576.3,1575.8,6.34581]
[1743980422835,0.6366755,1576.2,1576.0,6.34501]
[1743980423170,8.301,1576.1,1575.6,6.34672]
[1743980423465,8.301,1576.1,1576.0,6.34517]
[1743980423665,6.36675495,1576.3,1576.2,6.34437]
[1743980424029,8.61845658,1576.5,1576.2,6.34437]
[1743980424030,8.61845658,1576.5,1576.4,6.34356]
[1743980424263,6.36675495,1576.8,1576.7,6.34236]
[1743980424971,6.36675495,1576.8,1576.7,9.34236]
[1743980425170,0.884,1577.7,1576.9,6.34155]
[1743980425394,0.884,1577.7,1577.1,0.968]
[1743980425580,6.3406,1577.2,1576.7,7.31019]
[1743980425729,0.63406,1577.1,1576.7,7.31019]
[1743980425934,0.63406,1577.1,1576.4,3.968]
[1743980426163,8.298,1577.2,1576.9,6.34137]
[1743980426464,8.298,1577.2,1576.4,3.968]
[1743980426465,8.298,1577.2,1576.7,6.3423]
[1743980426686,8.298,1577.2,1577.0,6.34098]
[1743980427050,8.298,1577.2,1576.9,6.34138]
[1743980427250,8.298,1577.2,1576.9,6.34129]
[1743980427488,8.298,1577.2,1577.0,6.3409]
[1743980427787,3.92565622,1577.4,1576.9,0.06340983]
[1743980427959,8.297,1577.5,1577.2,6.34029]
[1743980428292,8.297,1577.5,1577.2,6.34032]
[1743980428800,6.35754,1577.9,1577.4,6.33954]
[1743980428948,0.02,1577.9,1577.6,6.33852]
[1743980429148,8.294,1577.8,1577.0,6.34099]
[1743980429383,0.8294,1577.7,1577.4,6.33933]
[1743980429692,12.21965622,1577.8,1577.4,12.67861]
[1743980429889,0.02,1577.9,1577.6,6.33858]
[1743980430194,0.02,1577.9,1577.5,0.9181]
[1743980430488,0.02,1577.9,1577.6,6.3385]
[1743980430489,0.11962546,1577.8,1577.6,6.3385]
[1743980430786,0.11962546,1577.8,1577.5,6.33909]
[1743980431091,0.9705,1577.7,1577.1,6.34066]
[1743980431291,14.62995,1577.6,1577.1,12.68113]
[1743980431496,8.291,1577.6,1577.2,6.34011]
[1743980431695,8.291,1577.6,1577.3,6.33972]
[1743980431848,0.11962546,1577.5,1577.4,6.33954]
[1743980432355,8.31,1577.9,1577.5,6.33889]
[1743980432553,0.11962546,1577.8,1577.6,0.0633844]
[1743980432857,0.11962546,1577.8,1577.3,6.33992]
[1743980433088,6.3396,1577.4,1576.9,6.3414]
[1743980433392,0.63396,1577.4,1577.1,6.3405]
[1743980433693,0.11962546,1577.3,1577.1,6.3405]
[1743980433889,0.11962546,1577.3,1577.2,6.34034]
[1743980434183,0.9376,1577.8,1577.4,6.33951]
[1743980434362,0.9376,1577.8,1577.1,6.34073]
[1743980434363,0.9376,1577.8,1577.5,0.06338358]
[1743980434564,8.308,1577.9,1577.6,6.33843]
[1743980435172,8.308,1577.9,1577.3,7.26124]
[1743980435173,8.308,1577.9,1577.3,0.9213]
[1743980435393,8.308,1577.9,1577.7,6.33811]
[1743980435560,0.02,1577.9,1577.8,6.33793]
[1743980436354,0.02,1577.9,1577.7,6.33805]
[1743980436596,0.02,1577.9,1577.8,6.33793]
[1743980436832,0.02,1577.9,1577.8,7.28979795]
[1743980437038,0.02,1577.9,1577.8,11.5892148]
[1743980437217,0.02,1577.9,1577.8,7.22643]
[1743980437730,0.02,1577.9,1577.6,6.33874]
[1743980438032,6.35776,1577.9,1577.5,6.339]
[1743980438334,0.12987431,1577.8,1577.2,13.44452]
[1743980438491,0.12987431,1577.8,1577.3,9.40325357]
[1743980438692,0.12987431,1577.8,1577.7,6.33834]
[1743980439121,0.12987431,1577.8,1577.7,6.4017152]
[1743980439320,0.12987431,1577.8,1577.7,6.33834]
[1743980439530,0.12987431,1577.8,1577.6,6.81481559]
[1743980439840,0.12987431,1577.8,1577.7,6.33834]
[1743980440333,0.12987431,1577.8,1577.7,8.61175556]
[1743980440502,4.31e-06,1577.8,1577.7,12.22512082]
[1743980440712,0.02,1577.9,1577.8,9.88793]
[1743980441015,0.02,1577.9,1577.8,9.33793]
[1743980442230,0.02,1577.9,1577.8,9.88793]
[1743980442524,0.02,1577.9,1577.8,11.73789856]
[1743980442904,0.02,1577.9,1577.8,11.18789856]
[1743980443329,0.02,1577.9,1577.8,9.33793]
[1743980444318,0.02,1577.9,1577.8,6.33793]
[1743980444523,0.02,1577.9,1577.7,6.33815]
[1743980444834,0.02,1577.9,1577.8,6.33793]
[1743980446034,0.02,1577.9,1577.8,6.40129957]
[1743980446237,0.02,1577.9,1577.8,8.24569096]
[1743980446392,0.02,1577.9,1577.8,11.24569096]
[1743980446600,0.02,1577.9,1577.8,12.20409096]
[1743980448436,0.02,1577.9,1577.8,6.33793]
[1743980448805,0.02,1577.9,1577.6,6.81484559]
[1743980449237,0.02,1577.9,1577.7,6.33834]
[1743980449400,0.02,1577.9,1577.4,6.33954]
[1743980449735,0.02,1577.9,1577.6,6.33874]
[1743980450026,0.02,1577.9,1577.7,12.6764]
[1743980450439,0.02,1577.9,1577.7,6.3382]
[1743980450734,0.02,1577.9,1577.2,6.34021]
[1743980450937,0.02,1577.9,1576.8,6.07375324]
[1743980450938,0.9339,1577.7,1577.4,6.33917]
[1743980451146,0.9339,1577.7,1577.5,6.339]
[1743980451303,4.91355622,1577.9,1577.6,12.67748]
[1743980451497,0.9879,1577.9,1577.8,6.33793]
[1743980451730,0.9879,1577.9,1577.7,6.33833]
[1743980451929,0.9879,1577.9,1577.1,15.58171]
[1743980451930,0.9679,1577.6,1576.9,0.9528]
[1743980452157,8.272,1577.5,1577.3,6.33993]
[1743980452460,8.272,1577.5,1577.2,6.34029]
[1743980452762,0.02,1577.9,1577.3,7.36523455]
[1743980453059,0.02,1577.9,1577.8,6.33793]
[1743980453424,0.02,1577.9,1577.6,6.80357097]
[1743980453638,0.02,1577.9,1577.7,6.33808]
[1743980453864,7.29712,1577.8,1577.4,6.33941]
[1743980454171,6.3385,1577.7,1577.2,6.81900449]
[1743980454327,8.271,1577.6,1577.2,0.47881449]
[1743980454523,0.959,1577.8,1577.3,6.33994]
[1743980454719,0.959,1577.8,1577.5,6.33897]
[1743980454959,0.959,1577.8,1577.5,6.33912]
[1743980455166,0.959,1577.8,1577.6,6.3386]
[1743980455326,0.959,1577.8,1577.7,6.33834]
[1743980455529,41.878,1577.9,1577.8,6.33793]
[1743980455835,0.02,1577.9,1577.8,6.33793]
[1743980456570,0.9318,1578.3,1577.8,7.66892823]
[1743980456792,4.85745622,1578.6,1578.4,6.33524]
[1743980456995,0.9318,1578.8,1578.6,6.33452]
[1743980457356,7.26573,1578.8,1578.3,6.33573]
[1743980457654,12.66898,1578.7,1578.3,6.33573]
[1743980457859,8.27,1578.6,1578.3,6.33573]
[1743980458289,8.27,1578.6,1578.2,6.33611]
[1743980458598,6.33515,1578.5,1578.1,6.33657]
[1743980458787,12.19465622,1578.6,1577.9,0.9264]
[1743980459094,6.33566,1578.4,1578.0,6.33705]
[1743980459390,6.33566,1578.4,1577.9,6.33752]
[1743980459391,16.59699622,1578.4,1577.9,6.33733]
[1743980459592,6.33606,1578.3,1577.9,6.33733]
[1743980459888,16.59707622,1578.4,1578.0,6.3371]
[1743980460090,10.26123622,1578.4,1578.0,12.67407]
[1743980460295,6.33693,1578.1,1577.7,6.33806]
[1743980460497,1.0005,1578.1,1577.8,6.3378]
[1743980460666,3.92565622,1578.2,1578.0,6.33713]
[1743980460995,9.2685,1578.6,1578.4,6.33537]
[1743980461199,1.0005,1578.6,1578.4,6.33537]
[1743980461357,0.9597,1578.9,1578.6,6.33447]
[1743980461556,7.29337,1578.9,1578.5,6.33496]
[1743980461774,0.9597,1578.9,1578.5,6.33496]
[1743980461980,7.29332,1578.9,1578.5,6.33496]
[1743980462186,6.33392,1578.8,1578.0,7.899136]
[1743980462384,6.33392,1578.8,1578.2,6.33618]
[1743980462385,0.9463,1578.4,1578.2,6.33618]
[1743980462578,4.87195622,1578.7,1578.5,6.33509]
[1743980462812,8.286,1578.9,1578.4,6.33552]
[1743980462813,0.1,1578.5,1578.4,6.33552]
[1743980463936,0.1,1578.5,1578.1,0.48491788]
[1743980464226,0.1,1578.5,1578.4,6.33552]
[1743980464586,0.1,1578.5,1578.3,6.3357]
[1743980464784,0.1,1578.5,1578.4,6.33552]
[1743980465024,0.1,1578.5,1578.4,6.39887436]
[1743980465836,0.1,1578.5,1578.4,6.33552]
[1743980466215,0.1,1578.5,1578.4,6.39886346]
[1743980466728,0.1,1578.5,1578.4,9.33552]
[1743980466943,0.1,1578.5,1578.4,11.696804]
[1743980468354,0.02,1578.9,1578.4,11.696804]
[1743980468536,0.02,1578.9,1578.8,10.26362]
[1743980468737,0.02,1578.9,1578.8,10.32693949]
[1743980469252,1e-05,1578.9,1578.8,10.87693949]
[1743980469453,6.31006187,1579.6,1579.5,6.33111]
[1743980470316,6.42934974,1579.6,1579.5,6.33111]
[1743980471213,12.76026974,1579.6,1579.2,6.33218]
[1743980471417,6.42934974,1579.6,1579.4,6.33124]
[1743980471617,6.42934974,1579.6,1579.5,6.33111]
[1743980471825,6.42934974,1579.6,1579.4,6.33124]
[1743980472355,6.42934974,1579.6,1579.5,6.33111]
[1743980472739,0.11928787,1579.6,1579.5,6.33111]
[1743980472938,0.11928787,1579.6,1579.5,7.66064738]
[1743980473114,0.02,1579.9,1579.8,6.32991]
[1743980473521,0.13975817,1579.9,1579.8,6.32991]
[1743980473730,0.02,1579.9,1579.8,6.32991]
[1743980473937,0.13975817,1579.9,1579.8,6.32991]
[1743980474122,0.02,1579.9,1579.8,6.32991]
[1743980474322,0.14143681,1579.9,1579.8,6.32991]
[1743980474527,0.02,1579.9,1579.8,7.595915]
[1743980474727,0.14143681,1579.9,1579.8,7.595915]
[1743980474924,0.02,1579.9,1579.8,7.595915]
[1743980475159,0.14143681,1579.9,1579.8,7.595915]
[1743980475348,0.02,1579.9,1579.8,7.595915]
[1743980475542,0.14143681,1579.9,1579.8,7.595915]
[1743980475864,0.14143681,1579.9,1579.8,6.32991]
[1743980476161,0.14143681,1579.9,1579.8,6.39319657]
[1743980476363,0.14143681,1579.9,1579.8,6.32991]
[1743980476934,0.14143681,1579.9,1579.8,6.39320049]
[1743980477537,0.14143681,1579.9,1579.8,6.86451442]
[1743980477747,0.14143681,1579.9,1579.8,12.10897686]
[1743980477951,6.81e-06,1579.9,1579.8,18.75568637]
[1743980478152,0.55,1580.1,1580.0,9.87911]
[1743980478352,0.55,1580.1,1580.0,9.32911]
[1743980478538,0.55,1580.1,1580.0,6.32911]
[1743980478744,0.55,1580.1,1579.9,6.32934]
[1743980478922,0.55,1580.1,1580.0,6.32911]
[1743980479126,0.55,1580.1,1579.8,7.72617393]
[1743980479323,0.55,1580.1,1579.9,6.32937]
[1743980479521,0.55,1580.1,1579.8,6.32952]
[1743980479924,0.55,1580.1,1580.0,6.32911]
[1743980480125,0.55,1580.1,1580.0,6.8627468]
[1743980480531,0.51836,1580.1,1580.0,6.8627468]
[1743980482329,0.51836,1580.1,1580.0,6.92602089]
[1743980482551,0.51836,1580.1,1580.0,6.8627468]
[1743980483871,0.51836,1580.1,1580.0,6.92602221]
[1743980484432,0.51836,1580.1,1580.0,6.8627468]
[1743980485469,0.51836,1580.1,1579.9,12.65868]
[1743980485782,0.51836,1580.1,1580.0,6.32911]
[1743980487844,0.51836,1580.1,1580.0,9.39238584]
[1743980488440,0.51836,1580.1,1580.0,10.29091]
[1743980488762,0.51836,1580.1,1580.0,11.952935]
[1743980489279,0.9611,1580.6,1580.0,11.952935]
[1743980489280,0.9363,1580.9,1580.6,6.32642]
[1743980489497,0.02,1580.9,1580.8,6.32591]
[1743980489666,0.02,1580.9,1580.8,17.3074442]
[1743980489843,0.02,1580.9,1580.8,12.48591]
[1743980490036,0.02,1580.9,1580.8,12.96265322]
[1743980490673,0.02,1580.9,1580.8,6.63674322]
[1743980490852,0.02,1580.9,1580.8,0.47674322]
[1743980491054,0.02,1580.9,1580.6,6.3265]
[1743980491255,0.02,1580.9,1580.6,12.653]
[1743980491575,0.02,1580.9,1580.7,6.3263]
[1743980491736,0.02,1580.9,1580.8,6.32591]
[1743980492479,0.02,1580.9,1580.6,0.47645817]
[1743980492780,0.02,1580.9,1580.6,6.32652]
[1743980492954,1.0119,1580.9,1580.7,6.32629]
[1743980493279,1.0119,1580.9,1580.7,6.32614]
[1743980493453,1.0119,1580.9,1580.7,6.38939487]
[1743980493657,1.0119,1580.9,1580.7,6.32614]
[1743980493841,6.32616,1580.8,1580.6,0.48453454]
[1743980494177,7.33744,1580.9,1580.5,6.32672]
[1743980494342,13.66331,1580.9,1580.5,6.32672]
[1743980494542,7.33744,1580.9,1580.5,12.65363]
[1743980494743,0.9717,1580.8,1580.0,7.990735]
[1743980494982,6.32784,1580.4,1579.9,6.32931]
[1743980495276,0.9717,1580.5,1580.4,6.32751]
[1743980495452,14.56193,1580.8,1580.4,6.32751]
[1743980495453,9.2184,1580.8,1580.5,6.32691]
[1743980495639,0.02,1580.9,1580.5,0.46990457]
[1743980495844,0.02,1580.9,1580.1,10.27745]
[1743980496074,0.02,1580.9,1580.3,6.3279]
[1743980496075,6.3265,1580.7,1580.3,6.3279]
[1743980496377,10.30836,1580.8,1580.3,6.32776]
[1743980496584,0.9939,1580.5,1579.7,0.32043499]
[1743980496887,0.9939,1580.1,1579.9,0.48058962]
[1743980497090,0.9939,1580.4,1579.8,3.0]
[1743980497295,0.9939,1580.4,1580.1,6.32854]
[1743980497587,7.32161,1580.4,1580.0,6.32907]
[1743980497795,6.32857,1580.2,1579.8,13.13365612]
[1743980497981,12.65711,1580.2,1579.8,6.80378612]
[1743980498150,8.235,1580.1,1579.8,6.32972]
[1743980498493,8.235,1580.1,1580.0,6.32911]
[1743980499583,6.32979,1579.9,1579.5,6.33098]
[1743980499791,0.9335,1579.4,1578.6,0.9956]
[1743980500089,8.234,1579.5,1579.3,6.33161]
[1743980500294,0.9335,1579.6,1579.4,6.33151]
[1743980500606,9.1675,1579.8,1579.3,0.633161]
[1743980500746,9.1675,1579.8,1579.7,6.33031]
[1743980501259,0.9405,1580.1,1579.9,6.32932]
[1743980501458,41.788,1580.5,1580.2,6.32827]
[1743980501459,0.9405,1580.4,1580.2,6.32827]
[1743980501664,0.9405,1580.4,1580.3,6.32791]
[1743980501896,0.9405,1580.4,1580.2,6.32827]
[1743980502086,0.9405,1580.4,1580.2,6.32815]
[1743980502282,0.9189,1580.2,1579.6,6.33049]
[1743980502495,14.56172,1580.1,1579.4,6.33142]
[1743980502706,6.3313,1579.5,1579.1,6.3327]
[1743980502875,6.3313,1579.5,1579.0,6.79652254]
[1743980502876,6.33159,1579.4,1579.0,6.79652254]
[1743980503068,6.33159,1579.4,1579.1,6.33268]
[1743980503301,6.33159,1579.4,1579.0,7.11075225]
[1743980503469,6.33262,1579.2,1578.8,6.80381519]
[1743980503685,0.9918,1579.1,1579.0,6.33312]
[1743980503882,0.9918,1579.3,1579.0,12.66604]
[1743980504179,0.9918,1579.3,1579.0,6.33292]
[1743980504393,0.9681,1578.9,1578.3,0.63357]
[1743980504714,8.233,1578.9,1578.8,6.33392]
[1743980505006,8.233,1578.9,1578.8,6.81343909]
[1743980505407,0.9712,1579.2,1579.1,6.33272]
[1743980505408,9.2032,1579.2,1579.1,6.33272]
[1743980505707,9.2032,1579.2,1579.0,6.33279]
[1743980505917,0.9712,1579.2,1579.1,6.33272]
[1743980506091,8.232,1579.3,1579.1,12.66525]
[1743980506409,8.232,1579.3,1579.0,6.33293]
[1743980506611,8.232,1579.3,1579.0,12.66588]
[1743980506811,8.232,1579.3,1579.1,6.33262]
[1743980507017,9.78093,1579.3,1578.8,0.4817525]
[1743980507324,6.33496,1578.6,1578.2,6.33618]
[1743980507610,6.33633,1578.2,1577.6,0.9348]
[1743980507808,6.33633,1578.2,1577.6,0.47082302]
[1743980507809,10.30123,1578.2,1577.6,0.47082302]
[1743980508129,1.0027,1577.7,1577.4,6.33953]
[1743980508323,8.233,1577.7,1577.6,6.8077634]
[1743980508611,50.036,1578.1,1578.0,6.33713]
[1743980508795,50.036,1578.1,1577.8,6.33791]
[1743980508998,6.33733,1578.0,1577.6,6.33871]
[1743980509214,0.9152,1578.0,1577.7,6.33815]
[1743980509431,0.9152,1578.0,1577.5,6.33912]
[1743980509590,0.9152,1578.0,1577.9,6.33753]
[1743980510084,0.9152,1578.1,1577.6,0.633912]
[1743980510319,0.9152,1578.1,1578.0,6.33713]
[1743980510986,0.9726,1578.5,1578.3,6.33591]
[1743980511187,0.9726,1578.5,1578.4,6.33552]
[1743980511423,8.235,1578.6,1578.5,6.33512]
[1743980511953,8.235,1578.6,1578.4,6.33552]
[1743980512143,8.235,1578.6,1578.3,12.67165]
[1743980512452,6.31006187,1578.8,1578.6,6.33456]
[1743980512757,6.31006187,1578.8,1578.7,6.33412]
[1743980512923,6.31006187,1578.8,1578.7,9.33412]
[1743980513127,6.33501,1578.6,1578.3,6.33592]
[1743980513348,20.90613,1578.6,1578.2,6.33619]
[1743980513559,14.57101,1578.6,1578.2,12.67229]
[1743980513716,14.57101,1578.6,1578.2,6.3361]
[1743980513919,6.33597,1578.3,1577.9,6.33723]
[1743980514136,7.24466,1578.3,1577.9,6.81943183]
[1743980514452,14.57237,1578.2,1577.9,0.48214183]
[1743980514654,14.57237,1578.2,1577.8,12.67562]
[1743980514956,8.236,1578.2,1577.8,1.267562]
[1743980515136,8.236,1578.2,1578.0,6.33679]
[1743980515451,14.57249,1578.2,1577.8,6.33782]
[1743980515676,8.236,1578.2,1577.8,6.33787]
[1743980515953,6.33767,1577.9,1577.5,6.33896]
[1743980516155,8.236,1577.8,1577.1,6.36069]
[1743980516457,0.9722,1577.7,1577.5,6.33899]
[1743980516971,7.31054,1577.7,1577.3,6.81552601]
[1743980517370,7.31073,1577.7,1577.3,6.81552601]
[1743980517558,0.9722,1577.7,1577.4,6.33951]
[1743980517878,0.9722,1577.7,1577.4,6.33935]
[1743980518093,7.31504,1577.2,1577.1,0.02]
[1743980518579,15.55204,1577.2,1577.1,0.02]
[1743980518780,6.34346,1576.5,1576.2,0.9087]
[1743980518935,6.34346,1576.5,1576.0,6.34495]
[1743980518936,6.34334,1576.5,1576.0,6.34495]
[1743980519140,14.57977,1576.6,1576.2,6.34435]
[1743980519379,14.57977,1576.6,1576.1,6.36458]
[1743980519543,14.57977,1576.6,1576.1,6.84857677]
[1743980519743,14.57977,1576.6,1576.1,13.19311677]
[1743980520075,6.34358,1576.4,1576.1,0.02]
[1743980520280,6.34321,1576.5,1576.1,0.02]
[1743980520481,6.34337,1576.5,1576.1,0.02]
[1743980520780,15.21078619,1576.6,1576.1,6.36475]
[1743980520947,15.21078619,1576.6,1576.2,6.34419]
[1743980521150,0.9597,1576.7,1576.5,6.34285]
[1743980521377,0.9597,1576.7,1576.1,3.50071495]
[1743980521580,6.34437,1576.2,1576.1,0.02]
[1743980521785,14.58437,1576.2,1576.1,0.02]
[1743980521951,18.13437,1576.2,1576.1,0.02]
[1743980522149,19.05617,1576.2,1575.3,4.06701954]
[1743980522451,19.05617,1576.2,1575.3,6.3478]
[1743980522452,6.34652,1575.7,1575.3,6.3478]
[1743980522783,9.1687,1575.7,1575.4,6.34727]
[1743980522990,8.239,1575.7,1575.5,6.34716]
[1743980523284,8.239,1575.7,1575.5,6.34703]
[1743980523486,8.239,1575.7,1575.6,6.34678]
[1743980523785,51.0287,1576.0,1575.7,6.34599]
[1743980524084,57.37424,1576.0,1575.5,6.34714]
[1743980524248,6.34572,1575.9,1575.5,6.34698]
[1743980524655,3.92565622,1575.9,1575.2,6.83496431]
[1743980524889,6.34682,1575.6,1575.2,6.83475431]
[1743980525193,6.34815,1575.3,1575.1,0.02]
[1743980525388,0.9913,1575.5,1575.1,0.02]
[1743980525694,8.242,1575.4,1575.3,6.34799]
[1743980525988,8.242,1575.4,1575.2,6.34818]
[1743980526183,8.242,1575.4,1575.1,6.36855]
[1743980526390,14.58959,1575.4,1575.1,0.02]
[1743980526588,6.34829,1575.3,1575.1,0.02]
[1743980526791,7.2879,1575.2,1575.1,0.02]
[1743980527692,52.7299,1575.2,1575.1,0.02]
[1743980528122,49.1799,1575.2,1575.1,0.02]
[1743980528814,42.8315,1575.2,1575.1,0.02]
[1743980529014,52.1799,1575.2,1575.1,0.02]
[1743980529310,45.8315,1575.2,1575.1,0.02]
[1743980529613,52.1799,1575.2,1575.1,0.02]
[1743980529990,42.8315,1575.2,1575.1,0.02]
[1743980530178,42.8315,1575.2,1575.1,6.3688]
[1743980530525,41.892,1575.2,1575.1,6.3688]
[1743980530678,50.15,1575.8,1575.4,6.34759]
[1743980530878,6.3468,1575.6,1575.2,12.69658]
[1743980531091,12.69314,1575.7,1575.3,6.34786]
[1743980531609,0.55,1575.7,1575.4,6.34735]
[1743980531787,6.89658,1575.7,1575.3,6.34793]
[1743980531993,51.073,1575.8,1575.6,6.34647]
[1743980531994,42.827,1575.8,1575.6,6.34647]
[1743980532375,42.827,1575.8,1575.4,6.34754]
[1743980532706,49.17335,1575.8,1575.4,6.34755]
[1743980532881,42.827,1575.8,1575.3,6.34795]
[1743980533081,6.34657,1575.7,1575.4,6.34752]
[1743980533285,55.51924,1575.8,1575.4,6.34752]
[1743980533479,49.17302,1575.8,1575.4,6.34752]
[1743980533780,42.827,1575.8,1575.6,6.34662]
[1743980534015,49.75265622,1575.8,1575.2,6.34833]
[1743980534178,9.89641,1575.7,1575.1,0.02]
[1743980534525,12.69555,1575.4,1575.1,0.02]
[1743980534733,15.14413,1575.3,1575.1,0.02]
[1743980534875,8.796,1575.3,1575.1,0.02]
[1743980535080,7.8757,1575.2,1575.1,0.02]
[1743980535481,7.8757,1575.2,1574.3,6.352]
[1743980535482,6.35042,1574.7,1574.3,6.352]
[1743980535677,9.1898,1574.6,1574.3,12.704]
[1743980535909,9.1898,1574.6,1574.1,6.37282]
[1743980535910,6.35165,1574.4,1574.1,0.02]
[1743980536178,9.1898,1574.6,1574.1,0.02]
[1743980536179,15.70435,1574.3,1574.1,0.02]
[1743980536378,6.35506,1573.6,1573.2,6.82575095]
[1743980536606,8.246,1573.5,1573.3,6.35604]
[1743980536803,8.246,1573.5,1573.1,0.02]
[1743980537015,3.92565622,1573.7,1573.2,6.35647]
[1743980537218,8.246,1573.6,1573.4,12.71109]
[1743980537384,8.246,1573.6,1573.5,6.35525]
[1743980537800,4.93045622,1574.1,1573.6,6.3547]
[1743980537998,9.2508,1574.1,1573.2,9.35647]
[1743980538238,41.918,1574.4,1573.7,6.35445]
[1743980538416,41.918,1574.4,1574.3,6.35202]
[1743980539139,41.918,1574.4,1573.9,6.35343]
[1743980539293,7.27905,1574.3,1573.7,6.3541]
[1743980539495,8.248,1574.2,1573.8,6.35368]
[1743980539740,8.248,1574.2,1573.8,12.70754]
[1743980540027,8.248,1574.2,1574.0,6.35308]
[1743980540232,14.60069,1574.2,1573.8,6.354]
[1743980540530,9.90285,1574.1,1573.7,6.35445]
[1743980540739,0.975,1573.9,1573.4,6.35565]
[1743980540890,9.90447,1573.7,1573.1,0.02]
[1743980541096,6.35593,1573.4,1573.1,0.02]
[1743980541317,8.248,1573.3,1573.1,0.02]
[1743980541519,4.5076,1573.2,1572.3,6.35999]
[1743980541728,4.5076,1573.2,1572.2,6.36034]
[1743980541729,6.35895,1572.6,1572.2,6.36034]
[1743980541937,6.35996,1572.4,1572.1,0.02]
[1743980542172,9.2378,1572.3,1572.1,0.02]
[1743980542332,8.248,1572.3,1572.2,6.36051]
[1743980542659,8.248,1572.3,1572.1,6.38062]
[1743980542958,8.248,1572.3,1572.1,0.02]
[1743980543163,0.9325,1572.2,1572.1,0.02]
[1743980543360,4.4825,1572.2,1572.1,0.02]
[1743980543763,0.55,1572.1,1571.5,6.36332]
[1743980544057,41.944,1572.0,1571.9,6.36172]
[1743980544267,41.944,1572.0,1571.3,0.48473675]
[1743980544472,41.944,1572.0,1571.6,6.36294]
[1743980544625,8.248,1572.3,1572.1,6.36059]
[1743980544823,0.9096,1572.8,1572.6,6.35867]
[1743980545126,0.9096,1572.8,1572.5,6.35904]
[1743980545325,0.9096,1572.8,1572.3,6.35971]
[1743980545552,0.9096,1572.8,1572.3,0.635971]
[1743980545867,8.249,1573.0,1572.8,12.71584]
[1743980546023,41.967,1573.2,1573.0,6.35727]
[1743980546224,41.967,1573.2,1572.9,6.35759]
[1743980546433,41.967,1573.2,1572.9,6.35749]
[1743980546661,41.967,1573.2,1572.8,12.71586]
[1743980546869,41.967,1573.2,1573.0,6.3571]
[1743980547046,50.22,1573.8,1573.1,6.3567]
[1743980547248,50.22,1573.8,1572.9,0.9019]
[1743980547249,50.22,1573.8,1573.4,6.35562]
[1743980547822,50.22,1573.8,1573.3,6.35605]
[1743980548027,50.22,1573.8,1573.3,6.35591]
[1743980548268,41.967,1573.8,1573.5,6.3551]
[1743980548464,50.221,1573.8,1573.4,6.35537]
[1743980548648,50.221,1573.8,1573.5,6.35495]
[1743980548965,50.221,1573.8,1573.3,6.991431]
[1743980549171,0.9722,1573.7,1572.9,0.9019]
[1743980549369,0.9722,1573.7,1573.5,6.35498]
[1743980549594,50.221,1573.8,1573.6,6.35466]
[1743980549903,50.221,1573.8,1573.7,6.35445]
[1743980550060,41.967,1573.8,1573.7,6.35445]
[1743980550394,0.02,1573.9,1573.8,6.35404]
[1743980551080,0.02,1573.9,1573.8,6.88373275]
[1743980551582,0.02,1573.9,1573.8,6.82019916]
[1743980551999,1e-05,1573.9,1573.8,9.88372316]
[1743980552495,0.02,1574.9,1574.7,6.35026]
[1743980552659,0.02,1574.9,1574.1,6.35245]
[1743980552660,0.02,1574.9,1574.6,6.35079]
[1743980552858,0.02,1574.9,1574.6,6.35054]
[1743980553196,0.02,1574.9,1574.5,6.35099]
[1743980553492,0.9997,1574.8,1574.1,6.35279]
[1743980553693,0.55,1574.7,1574.1,6.35279]
[1743980553859,3.0,1574.5,1574.1,6.35279]
[1743980554055,3.0,1574.5,1573.9,6.35356]
[1743980554272,3.0,1574.5,1574.2,6.35227]